Workbook

Sheet Loan (hidden)
E2: Кредит | F2: 20000
E3: Первый взнос% | F3: 0.29
E4: Первый взнос,руб | F4: =-F2*F3 -> -5800
E5: Процент | F5: 0.145
E6: Период | F6: 10
E7: Начало периода | F7: 2019-05-01
E8: Конец периода | F8: =EDATE(F7,F6*12) -> 2029-05-01
E9: Сумма переплаты по кредиту | F9: =SUM(INDIRECT("G"&13):INDIRECT("G"&F6*12+12)) -> 12772.06891
E10: Сумма выплат за весь период | F10: =SUM(INDIRECT("f"&13):INDIRECT("f"&F6*12+12)) -> -26972.06891
D11: График выплат
D12: Период | E12: Дата платежа | F12: Платеж | G12: % по кредиту | H12: тело долга | I12: Остаток долга
D13: 1 | E13: =EDATE(F$7,D13) -> 2019-06-01 | F13: =PMT($F$5/12,$F$6*12,$F$2+$F$4) -> -224.7672409 | G13: =(F2+F4)*F5/12 -> 171.5833333 | H13: =F13+G13 -> -53.18390761 | I13: =H13+F2+F4 -> 14146.81609
D14: 2 | E14: =EDATE(F$7,D14) -> 2019-07-01 | F14: =PMT($F$5/12,$F$6*12,$F$2+$F$4) -> -224.7672409 | G14: =I13*$F$5/12 -> 170.9406944 | H14: =F14+G14 -> -53.8265465 | I14: =I13+H14 -> 14092.98955
D15: 3 | E15: 2019-08-01 | F15: -224.7672409 | G15: =I14*$F$5/12 -> 170.2902903 | H15: =F15+G15 -> -54.4769506 | I15: =I14+H15 -> 14038.5126
D16: 4 | E16: 2019-09-01 | F16: -224.7672409 | G16: 169.6320272 | H16: -55.13521376 | I16: 13983.37738
D17: 5 | E17: 2019-10-01 | F17: -224.7672409 | G17: 168.96581 | H17: -55.80143092 | I17: 13927.57595
D18: 6 | E18: 2019-11-01 | F18: -224.7672409 | G18: 168.2915427 | H18: -56.47569821 | I18: 13871.10025
D19: 7 | E19: 2019-12-01 | F19: -224.7672409 | G19: 167.609128 | H19: -57.1581129 | I19: 13813.94214
D20: 8 | E20: 2020-01-01 | F20: -224.7672409 | G20: 166.9184675 | H20: -57.84877343 | I20: 13756.09337
D21: 9 | E21: 2020-02-01 | F21: -224.7672409 | G21: 166.2194615 | H21: -58.54777944 | I21: 13697.54559
D22: 10 | E22: 2020-03-01 | F22: -224.7672409 | G22: 165.5120092 | H22: -59.25523178 | I22: 13638.29035
D23: 11 | E23: 2020-04-01 | F23: -224.7672409 | G23: 164.7960085 | H23: -59.97123249 | I23: 13578.31912
D24: 12 | E24: 2020-05-01 | F24: -224.7672409 | G24: 164.0713561 | H24: -60.69588489 | I24: 13517.62324
D25: 13 | E25: 2020-06-01 | F25: -224.7672409 | G25: 163.3379475 | H25: -61.4292935 | I25: 13456.19394
D26: 14 | E26: 2020-07-01 | F26: -224.7672409 | G26: 162.5956768 | H26: -62.17156413 | I26: 13394.02238
D27: 15 | E27: 2020-08-01 | F27: -224.7672409 | G27: 161.8444371 | H27: -62.92280386 | I27: 13331.09958
D28: 16 | E28: 2020-09-01 | F28: -224.7672409 | G28: 161.0841199 | H28: -63.68312107 | I28: 13267.41645
D29: 17 | E29: 2020-10-01 | F29: -224.7672409 | G29: 160.3146155 | H29: -64.45262545 | I29: 13202.96383
D30: 18 | E30: 2020-11-01 | F30: -224.7672409 | G30: 159.5358129 | H30: -65.23142801 | I30: 13137.7324
D31: 19 | E31: 2020-12-01 | F31: -224.7672409 | G31: 158.7475999 | H31: -66.0196411 | I31: 13071.71276
D32: 20 | E32: 2021-01-01 | F32: -224.7672409 | G32: 157.9498625 | H32: -66.81737843 | I32: 13004.89538
D33: 21 | E33: 2021-02-01 | F33: -224.7672409 | G33: =I32*$F$5/12 -> 157.1424859 | H33: =F33+G33 -> -67.62475508 | I33: =I32+H33 -> 12937.27063
D34: 22 | E34: 2021-03-01 | F34: -224.7672409 | G34: 156.3253534 | H34: -68.44188754 | I34: 12868.82874
D35: 23 | E35: 2021-04-01 | F35: -224.7672409 | G35: 155.4983473 | H35: -69.26889368 | I35: 12799.55985
D36: 24 | E36: 2021-05-01 | F36: -224.7672409 | G36: 154.6613481 | H36: -70.10589281 | I36: 12729.45395
D37: 25 | E37: 2021-06-01 | F37: -224.7672409 | G37: 153.8142353 | H37: -70.95300568 | I37: 12658.50095
D38: 26 | E38: 2021-07-01 | F38: -224.7672409 | G38: 152.9568864 | H38: -71.8103545 | I38: 12586.69059
D39: 27 | E39: 2021-08-01 | F39: -224.7672409 | G39: 152.089178 | H39: -72.67806295 | I39: 12514.01253
D40: 28 | E40: 2021-09-01 | F40: -224.7672409 | G40: 151.2109847 | H40: -73.55625621 | I40: 12440.45627
D41: 29 | E41: 2021-10-01 | F41: -224.7672409 | G41: 150.32218 | H41: -74.44506098 | I41: 12366.01121
D42: 30 | E42: 2021-11-01 | F42: -224.7672409 | G42: 149.4226355 | H42: -75.34460546 | I42: 12290.66661
D43: 31 | E43: 2021-12-01 | F43: -224.7672409 | G43: 148.5122215 | H43: -76.25501945 | I43: 12214.41159
D44: 32 | E44: 2022-01-01 | F44: -224.7672409 | G44: 147.5908067 | H44: -77.17643426 | I44: 12137.23515
D45: 33 | E45: 2022-02-01 | F45: -224.7672409 | G45: 146.6582581 | H45: -78.10898285 | I45: 12059.12617
D46: 34 | E46: 2022-03-01 | F46: -224.7672409 | G46: 145.7144412 | H46: -79.05279972 | I46: 11980.07337
D47: 35 | E47: 2022-04-01 | F47: -224.7672409 | G47: 144.7592199 | H47: -80.00802105 | I47: 11900.06535
D48: 36 | E48: 2022-05-01 | F48: -224.7672409 | G48: 143.7924563 | H48: -80.97478464 | I48: 11819.09057
D49: 37 | E49: 2022-06-01 | F49: -224.7672409 | G49: 142.814011 | H49: -81.95322995 | I49: 11737.13734
D50: 38 | E50: 2022-07-01 | F50: -224.7672409 | G50: 141.8237428 | H50: -82.94349815 | I50: 11654.19384
D51: 39 | E51: 2022-08-01 | F51: -224.7672409 | G51: 140.8215089 | H51: -83.94573208 | I51: 11570.2481
D52: 40 | E52: 2022-09-01 | F52: -224.7672409 | G52: 139.8071646 | H52: -84.96007635 | I52: 11485.28803
D53: 41 | E53: 2022-10-01 | F53: -224.7672409 | G53: 138.7805637 | H53: -85.98667727 | I53: 11399.30135
D54: 42 | E54: 2022-11-01 | F54: -224.7672409 | G54: 137.741558 | H54: -87.02568295 | I54: 11312.27567
D55: 43 | E55: 2022-12-01 | F55: -224.7672409 | G55: 136.6899977 | H55: -88.07724329 | I55: 11224.19843
D56: 44 | E56: 2023-01-01 | F56: -224.7672409 | G56: 135.625731 | H56: -89.14150998 | I56: 11135.05692
D57: 45 | E57: 2023-02-01 | F57: -224.7672409 | G57: 134.5486044 | H57: -90.21863656 | I57: 11044.83828
D58: 46 | E58: 2023-03-01 | F58: -224.7672409 | G58: 133.4584625 | H58: -91.30877842 | I58: 10953.5295
D59: 47 | E59: 2023-04-01 | F59: -224.7672409 | G59: 132.3551481 | H59: -92.41209282 | I59: 10861.11741
D60: 48 | E60: 2023-05-01 | F60: -224.7672409 | G60: 131.238502 | H60: -93.52873894 | I60: 10767.58867
D61: 49 | E61: 2023-06-01 | F61: -224.7672409 | G61: 130.1083631 | H61: -94.65887787 | I61: 10672.92979
D62: 50 | E62: 2023-07-01 | F62: -224.7672409 | G62: 128.9645683 | H62: -95.80267265 | I62: 10577.12712
D63: 51 | E63: 2023-08-01 | F63: -224.7672409 | G63: 127.8069527 | H63: -96.96028828 | I63: 10480.16683
D64: 52 | E64: 2023-09-01 | F64: -224.7672409 | G64: 126.6353492 | H64: -98.13189176 | I64: 10382.03494
D65: 53 | E65: 2023-10-01 | F65: -224.7672409 | G65: 125.4495888 | H65: -99.31765212 | I65: 10282.71729
D66: 54 | E66: 2023-11-01 | F66: -224.7672409 | G66: 124.2495005 | H66: -100.5177404 | I66: 10182.19955
D67: 55 | E67: 2023-12-01 | F67: -224.7672409 | G67: 123.0349112 | H67: -101.7323298 | I67: 10080.46722
D68: 56 | E68: 2024-01-01 | F68: -224.7672409 | G68: 121.8056455 | H68: -102.9615954 | I68: 9977.50562
D69: 57 | E69: 2024-02-01 | F69: -224.7672409 | G69: 120.5615262 | H69: -104.2057147 | I69: 9873.299905
D70: 58 | E70: 2024-03-01 | F70: -224.7672409 | G70: 119.3023739 | H70: -105.4648671 | I70: 9767.835038
D71: 59 | E71: 2024-04-01 | F71: -224.7672409 | G71: 118.0280067 | H71: -106.7392342 | I71: 9661.095804
D72: 60 | E72: 2024-05-01 | F72: -224.7672409 | G72: 116.738241 | H72: -108.029 | I72: 9553.066804
D73: 61 | E73: 2024-06-01 | F73: -224.7672409 | G73: 115.4328905 | H73: -109.3343504 | I73: 9443.732454
D74: 62 | E74: 2024-07-01 | F74: -224.7672409 | G74: 114.1117671 | H74: -110.6554738 | I74: 9333.07698
D75: 63 | E75: 2024-08-01 | F75: -224.7672409 | G75: 112.7746802 | H75: -111.9925608 | I75: 9221.084419
D76: 64 | E76: 2024-09-01 | F76: -224.7672409 | G76: 111.4214367 | H76: -113.3458042 | I76: 9107.738615
D77: 65 | E77: 2024-10-01 | F77: -224.7672409 | G77: =I76*$F$5/12 -> 110.0518416 | H77: =F77+G77 -> -114.7153994 | I77: =I76+H77 -> 8993.023215
D78: 66 | E78: =EDATE(F$7,D78) -> 2024-11-01 | F78: =PMT($F$5/12,$F$6*12,$F$2+$F$4) -> -224.7672409 | G78: 108.6656972 | H78: -116.1015438 | I78: 8876.921672
D79: 67 | E79: 2024-12-01 | F79: -224.7672409 | G79: 107.2628035 | H79: -117.5044374 | I79: 8759.417234
D80: 68 | E80: 2025-01-01 | F80: -224.7672409 | G80: 105.8429582 | H80: -118.9242827 | I80: 8640.492952
D81: 69 | E81: 2025-02-01 | F81: -224.7672409 | G81: 104.4059565 | H81: -120.3612845 | I81: 8520.131667
D82: 70 | E82: 2025-03-01 | F82: -224.7672409 | G82: 102.951591 | H82: -121.81565 | I82: 8398.316017
D83: 71 | E83: 2025-04-01 | F83: -224.7672409 | G83: 101.4796519 | H83: -123.2875891 | I83: 8275.028428
D84: 72 | E84: 2025-05-01 | F84: -224.7672409 | G84: 99.98992684 | H84: -124.7773141 | I84: 8150.251114
D85: 73 | E85: 2025-06-01 | F85: -224.7672409 | G85: 98.48220096 | H85: -126.28504 | I85: 8023.966074
D86: 74 | E86: 2025-07-01 | F86: -224.7672409 | G86: 96.95625673 | H86: -127.8109842 | I86: 7896.15509
D87: 75 | E87: 2025-08-01 | F87: -224.7672409 | G87: 95.411874 | H87: -129.3553669 | I87: 7766.799723
D88: 76 | E88: 2025-09-01 | F88: -224.7672409 | G88: 93.84882998 | H88: -130.918411 | I88: 7635.881312
D89: 77 | E89: 2025-10-01 | F89: -224.7672409 | G89: 92.26689918 | H89: -132.5003418 | I89: 7503.38097
D90: 78 | E90: 2025-11-01 | F90: -224.7672409 | G90: 90.66585339 | H90: -134.1013876 | I90: 7369.279582
D91: 79 | E91: 2025-12-01 | F91: -224.7672409 | G91: 89.04546162 | H91: -135.7217793 | I91: 7233.557803
D92: 80 | E92: 2026-01-01 | F92: -224.7672409 | G92: 87.40549012 | H92: -137.3617508 | I92: 7096.196052
D93: 81 | E93: 2026-02-01 | F93: -224.7672409 | G93: 85.7457023 | H93: -139.0215386 | I93: 6957.174514
D94: 82 | E94: 2026-03-01 | F94: -224.7672409 | G94: 84.06585871 | H94: -140.7013822 | I94: 6816.473131
D95: 83 | E95: 2026-04-01 | F95: -224.7672409 | G95: 82.36571701 | H95: -142.4015239 | I95: 6674.071608
D96: 84 | E96: 2026-05-01 | F96: -224.7672409 | G96: 80.64503192 | H96: -144.122209 | I96: 6529.949398
D97: 85 | E97: 2026-06-01 | F97: -224.7672409 | G97: 78.90355523 | H97: -145.8636857 | I97: 6384.085713
D98: 86 | E98: 2026-07-01 | F98: -224.7672409 | G98: 77.1410357 | H98: -147.6262053 | I98: 6236.459508
D99: 87 | E99: 2026-08-01 | F99: -224.7672409 | G99: 75.35721905 | H99: -149.4100219 | I99: 6087.049486
D100: 88 | E100: 2026-09-01 | F100: -224.7672409 | G100: 73.55184795 | H100: -151.215393 | I100: 5935.834093
D101: 89 | E101: 2026-10-01 | F101: -224.7672409 | G101: 71.72466195 | H101: -153.042579 | I101: 5782.791514
D102: 90 | E102: 2026-11-01 | F102: -224.7672409 | G102: 69.87539746 | H102: -154.8918435 | I102: 5627.89967
D103: 91 | E103: 2026-12-01 | F103: -224.7672409 | G103: 68.00378768 | H103: -156.7634533 | I103: 5471.136217
D104: 92 | E104: 2027-01-01 | F104: -224.7672409 | G104: 66.10956262 | H104: -158.6576783 | I104: 5312.478539
D105: 93 | E105: 2027-02-01 | F105: -224.7672409 | G105: 64.19244901 | H105: -160.5747919 | I105: 5151.903747
D106: 94 | E106: 2027-03-01 | F106: -224.7672409 | G106: 62.25217027 | H106: -162.5150707 | I106: 4989.388676
D107: 95 | E107: 2027-04-01 | F107: -224.7672409 | G107: 60.2884465 | H107: -164.4787944 | I107: 4824.909881
D108: 96 | E108: 2027-05-01 | F108: -224.7672409 | G108: 58.3009944 | H108: -166.4662465 | I108: 4658.443635
D109: 97 | E109: 2027-06-01 | F109: -224.7672409 | G109: 56.28952726 | H109: -168.4777137 | I109: 4489.965921
D110: 98 | E110: 2027-07-01 | F110: -224.7672409 | G110: 54.25375488 | H110: -170.5134861 | I110: 4319.452435
D111: 99 | E111: 2027-08-01 | F111: -224.7672409 | G111: 52.19338359 | H111: -172.5738574 | I111: 4146.878578
D112: 100 | E112: 2027-09-01 | F112: -224.7672409 | G112: 50.10811615 | H112: -174.6591248 | I112: 3972.219453
D113: 101 | E113: 2027-10-01 | F113: -224.7672409 | G113: 47.99765172 | H113: -176.7695892 | I113: 3795.449864
D114: 102 | E114: 2027-11-01 | F114: -224.7672409 | G114: 45.86168585 | H114: -178.9055551 | I114: 3616.544309
D115: 103 | E115: 2027-12-01 | F115: -224.7672409 | G115: 43.6999104 | H115: -181.0673306 | I115: 3435.476978
D116: 104 | E116: 2028-01-01 | F116: -224.7672409 | G116: 41.51201349 | H116: -183.2552275 | I116: 3252.221751
D117: 105 | E117: 2028-02-01 | F117: -224.7672409 | G117: 39.29767949 | H117: -185.4695615 | I117: 3066.752189
D118: 106 | E118: 2028-03-01 | F118: -224.7672409 | G118: 37.05658895 | H118: -187.710652 | I118: 2879.041537
D119: 107 | E119: 2028-04-01 | F119: -224.7672409 | G119: 34.78841857 | H119: -189.9788224 | I119: 2689.062715
D120: 108 | E120: 2028-05-01 | F120: -224.7672409 | G120: 32.49284114 | H120: -192.2743998 | I120: 2496.788315
D121: 109 | E121: 2028-06-01 | F121: -224.7672409 | G121: 30.16952547 | H121: -194.5977155 | I121: 2302.1906
D122: 110 | E122: 2028-07-01 | F122: -224.7672409 | G122: 27.81813641 | H122: -196.9491045 | I122: 2105.241495
D123: 111 | E123: 2028-08-01 | F123: -224.7672409 | G123: 25.43833473 | H123: -199.3289062 | I123: 1905.912589
D124: 112 | E124: 2028-09-01 | F124: -224.7672409 | G124: 23.02977711 | H124: -201.7374638 | I124: 1704.175125
D125: 113 | E125: 2028-10-01 | F125: -224.7672409 | G125: 20.59211609 | H125: -204.1751249 | I125: 1500
D126: 114 | E126: 2028-11-01 | F126: -224.7672409 | G126: 18.125 | H126: -206.6422409 | I126: 1293.357759
D127: 115 | E127: 2028-12-01 | F127: -224.7672409 | G127: 15.62807292 | H127: -209.139168 | I127: 1084.218591
D128: 116 | E128: 2029-01-01 | F128: -224.7672409 | G128: 13.10097464 | H128: -211.6662663 | I128: 872.5523249
D129: 117 | E129: 2029-02-01 | F129: -224.7672409 | G129: 10.54334059 | H129: -214.2239004 | I129: 658.3284245
D130: 118 | E130: 2029-03-01 | F130: -224.7672409 | G130: 7.954801796 | H130: -216.8124392 | I130: 441.5159853
D131: 119 | E131: 2029-04-01 | F131: -224.7672409 | G131: 5.334984823 | H131: -219.4322561 | I131: 222.0837292
D132: 120 | E132: 2029-05-01 | F132: -224.7672409 | G132: 2.683511728 | H132: -222.0837292 | I132: -9.094947018e-12
D133: 121 | E133: 2029-06-01 | F133: -224.7672409 | G133: =I132*$F$5/12 -> -1.098972765e-13 | H133: =F133+G133 -> -224.7672409 | I133: =I132+H133 -> -224.7672409
D134: 122 | E134: 2029-07-01 | F134: -224.7672409 | G134: -2.715937495 | H134: -227.4831784 | I134: -452.2504194
D135: 123 | E135: 2029-08-01 | F135: -224.7672409 | G135: -5.464692568 | H135: -230.2319335 | I135: -682.4823529
D136: 124 | E136: 2029-09-01 | F136: -224.7672409 | G136: -8.246661764 | H136: -233.0139027 | I136: -915.4962556
D137: 125 | E137: 2029-10-01 | F137: -224.7672409 | G137: -11.06224642 | H137: -235.8294874 | I137: -1151.325743
D138: 126 | E138: 2029-11-01 | F138: -224.7672409 | G138: -13.91185273 | H138: -238.6790937 | I138: -1390.004837
D139: 127 | E139: 2029-12-01 | F139: -224.7672409 | G139: -16.79589178 | H139: -241.5631327 | I139: -1631.567969
D140: 128 | E140: 2030-01-01 | F140: -224.7672409 | G140: -19.71477963 | H140: -244.4820206 | I140: -1876.04999
D141: 129 | E141: 2030-02-01 | F141: -224.7672409 | G141: -22.66893738 | H141: -247.4361783 | I141: -2123.486168
D142: 130 | E142: =EDATE(F$7,D142) -> 2030-03-01 | F142: =PMT($F$5/12,$F$6*12,$F$2+$F$4) -> -224.7672409 | G142: -25.6587912 | H142: -250.4260321 | I142: -2373.9122
D143: 131 | E143: 2030-04-01 | F143: -224.7672409 | G143: -28.68477242 | H143: -253.4520134 | I143: -2627.364214
D144: 132 | E144: 2030-05-01 | F144: -224.7672409 | G144: -31.74731758 | H144: -256.5145585 | I144: -2883.878772
D145: 133 | E145: 2030-06-01 | F145: -224.7672409 | G145: -34.8468685 | H145: -259.6141094 | I145: -3143.492882
D146: 134 | E146: 2030-07-01 | F146: -224.7672409 | G146: -37.98387232 | H146: -262.7511133 | I146: -3406.243995
D147: 135 | E147: 2030-08-01 | F147: -224.7672409 | G147: -41.15878161 | H147: -265.9260226 | I147: -3672.170018
D148: 136 | E148: 2030-09-01 | F148: -224.7672409 | G148: -44.37205438 | H148: -269.1392953 | I148: -3941.309313
D149: 137 | E149: 2030-10-01 | F149: -224.7672409 | G149: -47.6241542 | H149: -272.3913951 | I149: -4213.700708
D150: 138 | E150: 2030-11-01 | F150: -224.7672409 | G150: -50.91555022 | H150: -275.6827912 | I150: -4489.383499
D151: 139 | E151: 2030-12-01 | F151: -224.7672409 | G151: -54.24671728 | H151: -279.0139582 | I151: -4768.397457
D152: 140 | E152: 2031-01-01 | F152: -224.7672409 | G152: -57.61813594 | H152: -282.3853769 | I152: -5050.782834
D153: 141 | E153: 2031-02-01 | F153: -224.7672409 | G153: -61.03029258 | H153: -285.7975335 | I153: -5336.580368
D154: 142 | E154: 2031-03-01 | F154: -224.7672409 | G154: -64.48367945 | H154: -289.2509204 | I154: -5625.831288
D155: 143 | E155: 2031-04-01 | F155: -224.7672409 | G155: -67.97879473 | H155: -292.7460357 | I155: -5918.577324
D156: 144 | E156: 2031-05-01 | F156: -224.7672409 | G156: -71.51614266 | H156: -296.2833836 | I156: -6214.860708
D157: 145 | E157: 2031-06-01 | F157: -224.7672409 | G157: -75.09623355 | H157: -299.8634745 | I157: -6514.724182
D158: 146 | E158: 2031-07-01 | F158: -224.7672409 | G158: -78.71958387 | H158: -303.4868248 | I158: -6818.211007
D159: 147 | E159: 2031-08-01 | F159: -224.7672409 | G159: -82.38671633 | H159: -307.1539573 | I159: -7125.364964
D160: 148 | E160: 2031-09-01 | F160: -224.7672409 | G160: -86.09815998 | H160: -310.8654009 | I160: -7436.230365
D161: 149 | E161: 2031-10-01 | F161: -224.7672409 | G161: -89.85445025 | H161: -314.6216912 | I161: -7750.852056
D162: 150 | E162: 2031-11-01 | F162: -224.7672409 | G162: -93.65612901 | H162: -318.42337 | I162: -8069.275426
D163: 151 | E163: 2031-12-01 | F163: -224.7672409 | G163: -97.50374473 | H163: -322.2709857 | I163: -8391.546412
D164: 152 | E164: 2032-01-01 | F164: -224.7672409 | G164: -101.3978525 | H164: -326.1650934 | I164: -8717.711505
D165: 153 | E165: 2032-02-01 | F165: -224.7672409 | G165: -105.339014 | H165: -330.106255 | I165: -9047.81776
D166: 154 | E166: 2032-03-01 | F166: -224.7672409 | G166: -109.3277979 | H166: -334.0950389 | I166: -9381.912799
D167: 155 | E167: 2032-04-01 | F167: -224.7672409 | G167: -113.3647797 | H167: -338.1320206 | I167: -9720.04482
D168: 156 | E168: 2032-05-01 | F168: -224.7672409 | G168: -117.4505416 | H168: -342.2177825 | I168: -10062.2626
D169: 157 | E169: 2032-06-01 | F169: -224.7672409 | G169: -121.5856731 | H169: -346.3529141 | I169: -10408.61552
D170: 158 | E170: 2032-07-01 | F170: -224.7672409 | G170: -125.7707708 | H170: -350.5380118 | I170: -10759.15353
D171: 159 | E171: 2032-08-01 | F171: -224.7672409 | G171: -130.0064385 | H171: -354.7736794 | I171: -11113.92721
D172: 160 | E172: 2032-09-01 | F172: -224.7672409 | G172: -134.2932871 | H172: -359.060528 | I172: -11472.98774
D173: 161 | E173: 2032-10-01 | F173: -224.7672409 | G173: -138.6319351 | H173: -363.3991761 | I173: -11836.38691
D174: 162 | E174: 2032-11-01 | F174: -224.7672409 | G174: -143.0230085 | H174: -367.7902495 | I174: -12204.17716
D175: 163 | E175: 2032-12-01 | F175: -224.7672409 | G175: -147.4671407 | H175: -372.2343816 | I175: -12576.41154
D176: 164 | E176: 2033-01-01 | F176: -224.7672409 | G176: -151.9649728 | H176: -376.7322138 | I176: -12953.14376
D177: 165 | E177: 2033-02-01 | F177: -224.7672409 | G177: -156.5171537 | H177: -381.2843947 | I177: -13334.42815
D178: 166 | E178: 2033-03-01 | F178: -224.7672409 | G178: -161.1243402 | H178: -385.8915811 | I178: -13720.31973
D179: 167 | E179: 2033-04-01 | F179: -224.7672409 | G179: -165.7871968 | H179: -390.5544377 | I179: -14110.87417
D180: 168 | E180: 2033-05-01 | F180: -224.7672409 | G180: -170.5063962 | H180: -395.2736372 | I180: -14506.14781
D181: 169 | E181: 2033-06-01 | F181: -224.7672409 | G181: -175.2826193 | H181: -400.0498603 | I181: -14906.19767
D182: 170 | E182: 2033-07-01 | F182: -224.7672409 | G182: -180.1165551 | H182: -404.8837961 | I182: -15311.08146
D183: 171 | E183: 2033-08-01 | F183: -224.7672409 | G183: -185.008901 | H183: -409.776142 | I183: -15720.85761
D184: 172 | E184: 2033-09-01 | F184: -224.7672409 | G184: -189.9603627 | H184: -414.7276037 | I184: -16135.58521
D185: 173 | E185: 2033-10-01 | F185: -224.7672409 | G185: -194.9716546 | H185: -419.7388956 | I185: -16555.3241
D186: 174 | E186: 2033-11-01 | F186: -224.7672409 | G186: -200.0434996 | H186: -424.8107405 | I186: -16980.13485
D187: 175 | E187: 2033-12-01 | F187: -224.7672409 | G187: -205.1766294 | H187: -429.9438703 | I187: -17410.07872
D188: 176 | E188: 2034-01-01 | F188: -224.7672409 | G188: -210.3717845 | H188: -435.1390254 | I188: -17845.21774
D189: 177 | E189: 2034-02-01 | F189: -224.7672409 | G189: -215.6297144 | H189: -440.3969553 | I189: -18285.6147
D190: 178 | E190: 2034-03-01 | F190: -224.7672409 | G190: -220.9511776 | H190: -445.7184185 | I190: -18731.33312
D191: 179 | E191: 2034-04-01 | F191: -224.7672409 | G191: -226.3369418 | H191: -451.1041828 | I191: -19182.4373
D192: 180 | E192: 2034-05-01 | F192: -224.7672409 | G192: -231.787784 | H192: -456.555025 | I192: -19638.99232
D193: 181 | E193: 2034-06-01 | F193: -224.7672409 | G193: -237.3044906 | H193: -462.0717315 | I193: -20101.06405
D194: 182 | E194: 2034-07-01 | F194: -224.7672409 | G194: -242.8878573 | H194: -467.6550983 | I194: -20568.71915
D195: 183 | E195: 2034-08-01 | F195: -224.7672409 | G195: -248.5386898 | H195: -473.3059307 | I195: -21042.02508
D196: 184 | E196: 2034-09-01 | F196: -224.7672409 | G196: -254.2578031 | H196: -479.025044 | I196: -21521.05013
D197: 185 | E197: 2034-10-01 | F197: -224.7672409 | G197: =I196*$F$5/12 -> -260.0460224 | H197: =F197+G197 -> -484.8132633 | I197: =I196+H197 -> -22005.86339
D198: 186 | E198: 2034-11-01 | F198: -224.7672409 | G198: -265.9041826 | H198: -490.6714236 | I198: -22496.53481
D199: 187 | E199: 2034-12-01 | F199: -224.7672409 | G199: -271.833129 | H199: -496.60037 | I199: -22993.13518
D200: 188 | E200: 2035-01-01 | F200: -224.7672409 | G200: -277.8337168 | H200: -502.6009578 | I200: -23495.73614
D201: 189 | E201: 2035-02-01 | F201: -224.7672409 | G201: -283.9068117 | H201: -508.6740527 | I201: -24004.41019
... 135 more rows

Sheet test3
A1: № Периода | B1: Тестовое случайное значение
A2: 1 | B2: 73,21
A3: 2 | B3: 104,40
A4: 3 | B4: 328,38
A5: 4 | B5: 126,97
A6: 5 | B6: 0,24
A7: 6 | B7: 531,43
A8: 7 | B8: 650,48
A9: 8 | B9: 538,57
A10: 9 | B10: 819,14
A11: 10 | B11: 81,07

Sheet Лист1
